bitfinex/quotes_BTCUSD_20250105
["timestamp","ask_amount","ask_price","bid_price","bid_amount"]
[1736112662292,0.05703725,98343.0,98342.0,0.1324254]
[1736112662855,0.05603725,98343.0,98342.0,0.1324254]
[1736112663271,0.05703725,98343.0,98342.0,0.1334254]
[1736112663871,0.05703725,98343.0,98342.0,0.1265854]
[1736112664183,0.05703725,98343.0,98342.0,0.1334254]
[1736112665974,0.05703725,98343.0,98342.0,0.0880254]
[1736112666874,0.05703725,98343.0,98342.0,0.0030854]
[1736112667089,0.05603725,98343.0,98342.0,0.0069254]
[1736112667280,0.05603725,98343.0,98342.0,0.0079254]
[1736112668045,0.05603725,98343.0,98342.0,0.0069254]
[1736112668228,0.05603725,98343.0,98342.0,0.0089254]
[1736112668429,0.05603725,98343.0,98342.0,0.0099254]
[1736112668845,0.05603725,98343.0,98342.0,0.0079254]
[1736112669211,0.05603725,98343.0,98342.0,0.0099254]
[1736112669547,0.05603725,98343.0,98342.0,0.0069254]
[1736112669957,0.05603725,98343.0,98342.0,0.0099254]
[1736112674338,0.05603725,98343.0,98342.0,0.0089254]
[1736112674718,0.05603725,98343.0,98342.0,0.0079254]
[1736112674870,0.05603725,98343.0,98342.0,0.0099254]
[1736112675398,0.05603725,98343.0,98342.0,0.0069254]
[1736112675706,0.05603725,98343.0,98342.0,0.0089254]
[1736112676066,0.05603725,98343.0,98342.0,0.0069254]
[1736112676469,0.05603725,98343.0,98342.0,0.0089254]
[1736112676685,0.05603725,98343.0,98342.0,0.0099254]
[1736112677248,0.05603725,98343.0,98342.0,0.0089254]
[1736112677880,0.05603725,98343.0,98342.0,0.0099254]
[1736112695151,0.05603725,98343.0,98342.0,0.2159584]
[1736112695368,0.05603725,98343.0,98342.0,0.2938584]
[1736112695560,0.05603725,98345.0,98344.0,0.20603]
[1736112696226,0.05603725,98345.0,98344.0,0.023]
[1736112696986,0.05603725,98345.0,98344.0,0.025]
[1736112698821,0.14712127,98345.0,98344.0,0.025]
[1736112701231,0.05603725,98345.0,98344.0,0.025]
[1736112703995,0.05603725,98345.0,98344.0,0.03184]
[1736112711694,0.05603725,98345.0,98344.0,0.0319255]
[1736112713842,0.19266328,98345.0,98344.0,0.0319255]
[1736112715031,0.05603725,98345.0,98344.0,0.0319255]
[1736112716209,0.05603725,98345.0,98344.0,0.0250855]
[1736112716472,0.05603725,98345.0,98344.0,0.0319255]
[1736112717725,0.13662603,98346.0,98345.0,0.023]
[1736112717933,0.13662603,98346.0,98345.0,0.44295532]
[1736112718151,0.13662603,98346.0,98345.0,0.338969]
[1736112718368,0.13662603,98346.0,98345.0,0.44295532]
[1736112718599,0.13662603,98346.0,98345.0,0.59295532]
[1736112719252,0.09144841,98356.0,98355.0,0.28521]
[1736112720284,0.09144841,98356.0,98355.0,0.38919632]
[1736112720505,0.000171,98358.0,98356.0,0.023]
[1736112720711,0.000171,98358.0,98357.0,0.183006]
[1736112720920,0.000171,98358.0,98357.0,0.206006]
[1736112721855,0.001171,98358.0,98357.0,0.206006]
[1736112722015,0.000171,98358.0,98357.0,0.206006]
[1736112722656,0.000171,98358.0,98357.0,0.208006]
[1736112723421,0.001171,98358.0,98357.0,0.212006]
[1736112726220,0.001171,98358.0,98357.0,0.029]
[1736112736228,0.001171,98358.0,98357.0,0.0290855]
[1736112737681,0.001271,98358.0,98357.0,0.0290855]
[1736112738798,0.001271,98358.0,98357.0,0.10870203]
[1736112739027,0.001271,98358.0,98357.0,0.25848835]
[1736112739223,0.001271,98358.0,98357.0,0.25747182]
[1736112739805,0.001271,98358.0,98357.0,0.25547182]
[1736112740114,0.001271,98358.0,98357.0,0.25847182]
[1736112741012,0.002271,98358.0,98357.0,0.26247182]
[1736112741542,0.001271,98358.0,98357.0,0.25147182]
[1736112741752,0.002271,98358.0,98357.0,0.25747182]
[1736112742119,0.002271,98358.0,98357.0,0.25547182]
[1736112742824,0.002271,98358.0,98357.0,0.25747182]
[1736112743024,0.000271,98358.0,98357.0,0.25347182]
[1736112743408,0.000271,98358.0,98357.0,0.25547182]
[1736112743610,0.000271,98358.0,98357.0,0.25147182]
[1736112743824,0.000271,98358.0,98357.0,0.25547182]
[1736112744203,0.000271,98358.0,98357.0,0.25147182]
[1736112744646,0.000271,98358.0,98357.0,0.25547182]
[1736112744848,0.000271,98358.0,98357.0,0.25147182]
[1736112745261,0.000271,98358.0,98357.0,0.25347182]
[1736112745873,0.000271,98358.0,98357.0,0.25147182]
[1736112746086,0.000271,98358.0,98357.0,0.25847182]
[1736112746520,0.000271,98358.0,98357.0,0.40847182]
[1736112746720,0.000271,98358.0,98357.0,0.40647182]
[1736112746926,0.000271,98358.0,98357.0,0.40847182]
[1736112749644,0.000271,98358.0,98357.0,0.41531182]
[1736112765465,0.000271,98358.0,98357.0,0.40847182]
[1736112765663,0.000271,98358.0,98357.0,0.41531182]
[1736112779278,0.000271,98358.0,98357.0,0.29091182]
[1736112784831,0.000271,98358.0,98357.0,0.38226306]
[1736112785305,0.000271,98358.0,98357.0,0.29091182]
[1736112804195,0.000271,98358.0,98357.0,0.42795216]
[1736112810079,0.000271,98358.0,98357.0,0.31712584]
[1736112810304,0.082471,98358.0,98357.0,0.30096584]
[1736112811117,0.082471,98358.0,98357.0,0.32196584]
[1736112811377,0.082471,98358.0,98357.0,0.1849255]
[1736112811707,0.082471,98358.0,98357.0,0.1799255]
[1736112811880,0.082471,98358.0,98357.0,0.1819255]
[1736112812474,0.082471,98358.0,98357.0,0.1839255]
[1736112812675,0.082471,98358.0,98357.0,0.1819255]
[1736112813066,0.082471,98358.0,98357.0,0.1809255]
[1736112813266,0.082471,98358.0,98357.0,0.1819255]
[1736112833078,0.000271,98358.0,98357.0,0.1819255]
[1736112846840,0.000271,98358.0,98357.0,0.28591182]
[1736112851714,0.000271,98358.0,98357.0,0.28491182]
[1736112852151,0.000271,98358.0,98357.0,0.28691182]
[1736112852332,0.000271,98358.0,98357.0,0.28491182]
[1736112852832,0.000271,98358.0,98357.0,0.28791182]
[1736112853468,0.000271,98358.0,98357.0,0.28691182]
[1736112853648,0.000271,98358.0,98357.0,0.28791182]
[1736112863019,0.000271,98358.0,98357.0,0.28107182]
[1736112863294,0.000271,98358.0,98357.0,0.28791182]
[1736112870981,0.000271,98358.0,98357.0,0.37931891]
[1736112871779,0.000271,98358.0,98357.0,0.49978166]
[1736112872034,1.4e-07,98359.0,98358.0,0.54986675]
[1736112872238,0.09168015,98383.0,98382.0,0.18296]
[1736112872442,0.09174039,98383.0,98382.0,0.46678632]
[1736112873687,0.00023104,98383.0,98382.0,0.46678632]
[1736112873861,0.00023104,98383.0,98382.0,0.46878632]
[1736112875058,0.00023104,98383.0,98382.0,0.47178632]
[1736112875272,0.00023104,98383.0,98382.0,0.46978632]
[1736112875481,0.00123104,98383.0,98382.0,0.47578632]
[1736112875667,0.00023104,98383.0,98382.0,0.46678632]
[1736112876079,0.00123104,98383.0,98382.0,0.47578632]
[1736112876296,0.00023104,98383.0,98382.0,0.46678632]
[1736112876665,0.00123104,98383.0,98382.0,0.48281478]
[1736112877078,0.00123104,98383.0,98382.0,0.48781478]
[1736112877440,0.00123104,98383.0,98382.0,0.48281478]
[1736112878090,0.00123104,98383.0,98382.0,0.48581478]
[1736112879170,0.00123104,98383.0,98382.0,0.5867242]
[1736112906332,0.00123104,98383.0,98382.0,0.63068695]
[1736112911591,0.00123104,98383.0,98382.0,0.72209404]
[1736112913070,0.00123104,98383.0,98382.0,0.63068695]
[1736112914543,0.00123104,98383.0,98382.0,0.93885974]
[1736112915525,0.00123104,98383.0,98382.0,1.1215802]
[1736112916489,0.00123104,98383.0,98382.0,0.93885974]
[1736112918467,0.00123104,98383.0,98382.0,1.03885974]
[1736112924756,4e-08,98383.0,98382.0,1.58245974]
[1736112925005,0.000171,98397.0,98382.0,1.58245974]
[1736112925006,0.000171,98397.0,98396.0,0.332934]
[1736112925210,0.00023123,98397.0,98396.0,0.45992032]
[1736112926738,0.00023123,98397.0,98396.0,0.76809311]
[1736112927359,0.00023123,98397.0,98396.0,0.77109311]
[1736112927582,0.00023123,98397.0,98396.0,0.78221523]
[1736112927775,0.00023123,98397.0,98396.0,0.82317798]
[1736112927982,0.00023123,98397.0,98396.0,0.92617798]
[1736112928190,0.00023123,98397.0,98396.0,1.46977798]
[1736112928391,0.00023123,98397.0,98396.0,1.47077798]
[1736112928814,2.3e-07,98397.0,98396.0,1.51467798]
[1736112929219,0.00100023,98397.0,98396.0,1.52567798]
[1736112930278,0.00100023,98397.0,98396.0,1.51767798]
[1736112930497,2.3e-07,98397.0,98396.0,1.51467798]
[1736112930708,0.00100023,98397.0,98396.0,1.52367798]
[1736112930915,2.3e-07,98397.0,98396.0,1.79275867]
[1736112931367,2.3e-07,98397.0,98396.0,1.79775867]
[1736112931595,2.3e-07,98397.0,98396.0,1.79275867]
[1736112931822,0.00100023,98397.0,98396.0,1.80175867]
[1736112931994,0.00100023,98397.0,98396.0,1.79775867]
[1736112932345,0.00100023,98397.0,98396.0,1.52367798]
[1736112932554,0.00100023,98397.0,98396.0,1.52667798]
[1736112933498,0.000171,98409.0,98408.0,0.332911]
[1736112933722,0.08,98428.0,98409.0,0.31696275]
[1736112933932,0.00021605,98410.0,98409.0,0.42094907]
[1736112934931,0.00021605,98410.0,98409.0,0.42694907]
[1736112935180,5e-08,98410.0,98409.0,0.42694907]
[1736112935375,5e-08,98410.0,98409.0,0.73812186]
[1736112935716,5e-08,98410.0,98409.0,0.73212186]
[1736112936740,5e-08,98410.0,98409.0,0.76219756]
[1736112936936,5e-08,98410.0,98409.0,0.99759827]
[1736112937286,0.00100005,98410.0,98409.0,1.54119827]
[1736112937863,0.00100005,98410.0,98409.0,1.49556772]
[1736112939124,0.00100005,98410.0,98409.0,1.31379756]
[1736112939330,5e-08,98410.0,98409.0,1.31379756]
[1736112940064,5e-08,98410.0,98409.0,1.44239756]
[1736112940541,5e-08,98410.0,98409.0,1.43939756]
[1736112940779,0.05,98429.0,98421.0,0.15]
[1736112941032,0.00099218,98424.0,98423.0,0.173]
[1736112941269,0.00099218,98424.0,98423.0,0.27698632]
[1736112944119,0.00099218,98424.0,98423.0,0.28198632]
[1736112944356,0.00099218,98424.0,98423.0,0.28298632]
[1736112946215,0.00116298,98424.0,98423.0,0.28298632]
[1736112947393,0.00116298,98424.0,98423.0,0.29301999]
[1736112953662,0.00116298,98424.0,98423.0,0.29985999]
[1736112954449,0.00116298,98424.0,98423.0,0.29301999]
[1736112954966,0.00116298,98424.0,98423.0,0.29985999]
[1736112970842,0.00116298,98424.0,98423.0,0.34382274]
[1736112971233,0.00116298,98424.0,98423.0,0.48001201]
[1736112972327,9.8e-07,98424.0,98423.0,0.66381686]
[1736112972478,9.8e-07,98424.0,98423.0,0.74241686]
[1736112972688,9.8e-07,98424.0,98423.0,0.88821686]
[1736112973506,9.8e-07,98424.0,98423.0,0.91735267]
[1736112973942,9.8e-07,98424.0,98423.0,0.91635267]
[1736112974262,9.8e-07,98424.0,98423.0,0.91835267]
[1736112975090,9.8e-07,98424.0,98423.0,0.91335267]
[1736112975496,9.8e-07,98424.0,98423.0,0.91835267]
[1736112976221,9.8e-07,98424.0,98423.0,1.46195267]
[1736112978257,9.8e-07,98424.0,98423.0,1.56895267]
[1736112981581,9.8e-07,98424.0,98423.0,1.53981686]
[1736112981824,9.8e-07,98424.0,98423.0,1.53998766]
[1736112982791,9.8e-07,98424.0,98423.0,1.5691027]
[1736112983128,9.8e-07,98424.0,98423.0,1.53998766]
[1736112983559,9.8e-07,98424.0,98423.0,1.56910121]
[1736112984581,9.8e-07,98424.0,98423.0,1.53998766]
[1736112987924,9.8e-07,98424.0,98423.0,1.13478491]
[1736112988137,9.8e-07,98424.0,98423.0,0.59802491]
[1736112988415,9.8e-07,98424.0,98423.0,0.62102491]
[1736112989035,9.8e-07,98424.0,98423.0,0.72102491]
[1736112989150,9.8e-07,98424.0,98423.0,0.71418491]
[1736112989352,9.8e-07,98424.0,98423.0,0.72102491]
[1736112991077,9.8e-07,98424.0,98423.0,0.90336449]
[1736112993767,9.8e-07,98424.0,98423.0,0.80336449]
[1736112993971,9.8e-07,98424.0,98423.0,0.90336449]
[1736112994954,9.8e-07,98424.0,98423.0,0.94894343]
[1736112996586,9.8e-07,98424.0,98423.0,0.84894343]
[1736112997440,9.8e-07,98424.0,98423.0,0.62102491]
[1736112997645,9.8e-07,98424.0,98423.0,0.61418491]
[1736112997854,9.8e-07,98424.0,98423.0,0.62102491]
[1736112999074,9.8e-07,98424.0,98423.0,0.90337961]
[1736113000296,9.8e-07,98424.0,98423.0,0.94894343]
[1736113001144,9.8e-07,98424.0,98423.0,0.84894343]
[1736113002651,9.8e-07,98424.0,98423.0,0.62102491]
[1736113003027,9.8e-07,98424.0,98423.0,0.72102491]
[1736113003467,9.8e-07,98424.0,98423.0,0.62102491]
[1736113005198,9.8e-07,98424.0,98423.0,0.72102491]
[1736113006413,9.8e-07,98424.0,98423.0,0.94894343]
[1736113011319,9.8e-07,98424.0,98423.0,0.72102491]
[1736113012683,9.8e-07,98424.0,98423.0,0.62102491]
[1736113013251,9.8e-07,98424.0,98423.0,0.72102491]
[1736113016881,9.8e-07,98424.0,98423.0,0.71418491]
[1736113017086,9.8e-07,98424.0,98423.0,0.72102491]
[1736113020071,9.8e-07,98424.0,98423.0,0.94894343]
[1736113020222,9.8e-07,98424.0,98423.0,0.84894343]
[1736113020446,9.8e-07,98424.0,98423.0,0.99290618]
[1736113020653,9.8e-07,98424.0,98423.0,1.07610618]
[1736113021521,9.8e-07,98424.0,98423.0,0.99290618]
[1736113023235,9.8e-07,98424.0,98423.0,0.76498766]
[1736113035968,9.8e-07,98424.0,98423.0,1.03848988]
[1736113044333,9.8e-07,98424.0,98423.0,0.76498766]
[1736113048487,9.8e-07,98424.0,98423.0,0.87198766]
[1736113048696,9.8e-07,98424.0,98423.0,0.76498766]
[1736113053053,8.54e-05,98457.0,98455.0,0.332824]
[1736113053255,0.00023357,98457.0,98456.0,0.13382632]
[1736113053683,0.00023357,98457.0,98456.0,0.28382632]
[1736113054158,0.00123357,98457.0,98456.0,0.28382632]
[1736113054877,0.00023357,98457.0,98456.0,0.30892492]
[1736113055080,0.00023357,98457.0,98456.0,0.31092492]
[1736113055492,0.00023357,98457.0,98456.0,0.30892492]
[1736113055699,0.00023357,98457.0,98456.0,0.62391904]
[1736113055903,0.00023357,98457.0,98456.0,0.63591904]
[1736113058309,0.00023357,98457.0,98456.0,0.64619081]
[1736113058715,0.08003357,98457.0,98456.0,0.64619081]
[1736113059672,0.08003357,98457.0,98456.0,0.32619669]
[1736113065667,0.08003357,98457.0,98456.0,0.29635669]
[1736113065880,0.08003357,98457.0,98456.0,0.16884]
[1736113065881,0.12753357,98457.0,98456.0,0.16884]
[1736113066145,0.12753357,98457.0,98456.0,0.01884]
[1736113066371,0.131974,98457.0,98456.0,0.19184]
[1736113066773,0.131974,98457.0,98456.0,0.18884]
[1736113067179,0.131974,98457.0,98456.0,0.19184]
[1736113067385,0.131974,98457.0,98456.0,0.18284]
[1736113067581,0.131974,98457.0,98456.0,0.17984]
[1736113067784,0.131974,98457.0,98456.0,0.18884]
[1736113068024,0.131974,98457.0,98456.0,0.173]
[1736113068227,0.131974,98457.0,98456.0,0.18184]
[1736113075394,0.004674,98457.0,98456.0,0.28582632]
[1736113075652,0.00023357,98457.0,98456.0,0.28582632]
[1736113077069,0.00023357,98457.0,98456.0,0.28782632]
[1736113077272,0.00023357,98457.0,98456.0,0.28582632]
[1736113077468,0.00023357,98457.0,98456.0,0.28382632]
[1736113077677,0.00023357,98457.0,98456.0,0.29282632]
[1736113077858,0.00023357,98457.0,98456.0,0.29582632]
[1736113082656,0.00023357,98457.0,98456.0,0.38651855]
[1736113085469,0.00023357,98457.0,98456.0,0.29582632]
[1736113086475,0.00023357,98457.0,98456.0,0.38651855]
[1736113086891,0.00023357,98457.0,98456.0,0.4304813]
[1736113091558,0.00023357,98457.0,98456.0,0.33978907]
[1736113092931,0.00023357,98457.0,98456.0,0.88338907]
[1736113094291,0.00023357,98457.0,98456.0,0.83942632]
[1736113095828,0.00023357,98457.0,98456.0,1.01949893]
[1736113097370,0.00023357,98457.0,98456.0,0.88338907]
[1736113098266,0.00023357,98457.0,98456.0,1.21861024]
[1736113104626,0.0002708,98469.0,98457.0,0.04396275]
[1736113104830,0.0002708,98469.0,98468.0,0.53738632]
[1736113105038,0.0002708,98469.0,98468.0,0.58134907]
[1736113106288,0.0002708,98469.0,98468.0,0.58534907]
[1736113107120,0.0002708,98469.0,98468.0,1.10202365]
[1736113107285,0.0002708,98469.0,98468.0,1.10302365]
[1736113107704,0.0002708,98469.0,98468.0,1.11304331]
[1736113107908,0.0002708,98469.0,98468.0,1.65664331]
[1736113108746,0.0002708,98469.0,98468.0,1.4751899]
[1736113110443,0.0002708,98469.0,98468.0,1.49595715]
[1736113110863,0.0002708,98469.0,98468.0,1.3582344]
[1736113111267,0.0002708,98469.0,98468.0,1.3812344]
[1736113111984,0.0002708,98469.0,98468.0,1.51734841]
[1736113113100,0.0002708,98469.0,98468.0,1.13675478]
[1736113113709,0.0002708,98469.0,98468.0,0.59315478]
[1736113115092,0.0002708,98469.0,98468.0,0.67005478]
[1736113115933,0.0002708,98469.0,98468.0,0.57931323]
[1736113116925,0.0002708,98469.0,98468.0,0.91437941]
[1736113117944,0.0002708,98469.0,98468.0,1.05055219]
[1736113119288,0.0002708,98469.0,98468.0,0.91437941]
[1736113120732,0.0002708,98469.0,98468.0,1.09583282]
[1736113121491,0.0002708,98469.0,98468.0,0.91437941]
[1736113124027,0.0002708,98469.0,98468.0,0.90753941]
[1736113124240,0.0002708,98469.0,98468.0,0.83747941]
[1736113127500,0.0002708,98469.0,98468.0,0.90003941]
[1736113137591,0.0002708,98469.0,98468.0,0.94400216]
[1736113141200,0.0002708,98469.0,98468.0,1.02160216]
[1736113142187,0.0002708,98469.0,98468.0,0.97763941]
[1736113142391,0.0002708,98469.0,98468.0,0.90003941]
[1736113142590,0.0002708,98469.0,98468.0,0.94400216]
[1736113143451,0.0002708,98469.0,98468.0,0.90003941]
[1736113143838,0.0002708,98469.0,98468.0,0.94400216]
[1736113144040,0.0002708,98469.0,98468.0,0.90003941]
[1736113144686,0.0002708,98469.0,98468.0,0.89319941]
[1736113144861,0.0002708,98469.0,98468.0,0.90003941]
[1736113146325,0.0002708,98469.0,98468.0,0.94400216]
[1736113150087,0.0002708,98469.0,98468.0,1.21655248]
[1736113150686,0.0002708,98469.0,98468.0,1.17258973]
[1736113150900,0.0002708,98469.0,98468.0,1.21655248]
[1736113151123,0.0002708,98469.0,98468.0,0.94400216]
[1736113156216,8e-07,98469.0,98468.0,1.09130216]
[1736113156433,9e-07,98477.0,98476.0,0.47596275]
[1736113156641,9e-07,98477.0,98476.0,0.65124907]
[1736113157235,2e-07,98482.0,98481.0,0.31696275]
[1736113157436,2e-07,98482.0,98481.0,0.50294907]
[1736113158313,0.0093894,98494.0,98493.0,0.14396275]
[1736113158461,4e-07,98496.0,98495.0,0.31696275]
[1736113158669,0.00049449,98496.0,98495.0,0.42094907]
[1736113159150,4.9e-07,98496.0,98495.0,0.50294907]
[1736113159371,0.0001,98529.0,98508.0,0.37596275]
[1736113159660,0.0004189,98509.0,98508.0,0.50294907]
[1736113160661,0.0004189,98509.0,98508.0,0.68567507]
[1736113160815,0.0004189,98509.0,98508.0,0.61851507]
[1736113161224,0.0004189,98509.0,98508.0,0.64164773]
[1736113161654,0.0004189,98509.0,98508.0,0.73236652]
[1736113162263,0.0004189,98509.0,98508.0,0.72552652]
[1736113162470,0.0004189,98509.0,98508.0,0.73236652]
[1736113162734,0.0004189,98509.0,98508.0,0.72552652]
[1736113162937,0.0004189,98509.0,98508.0,0.58840377]
[1736113163687,0.0004189,98509.0,98508.0,0.82161142]
[1736113163888,0.0004189,98509.0,98508.0,0.83858506]
[1736113164876,0.0004189,98509.0,98508.0,0.50410665]
[1736113165432,0.0004189,98509.0,98508.0,0.47384035]
[1736113165646,0.0004189,98509.0,98508.0,0.45084035]
[1736113165847,0.0004189,98509.0,98508.0,0.30455232]
[1736113166171,0.0004189,98509.0,98508.0,0.47455232]
[1736113166672,0.0004189,98509.0,98508.0,0.47555232]
[1736113167078,0.0004189,98509.0,98508.0,0.46755232]
[1736113167287,0.0004189,98509.0,98508.0,0.47155232]
[1736113167649,0.0004189,98509.0,98508.0,0.46655232]
[1736113167856,0.0004189,98509.0,98508.0,0.47155232]
[1736113168084,0.0004189,98509.0,98508.0,0.46755232]
[1736113168455,0.0004189,98509.0,98508.0,0.47155232]
[1736113168975,0.0004189,98509.0,98508.0,0.46755232]
[1736113169175,0.0004189,98509.0,98508.0,0.46655232]
[1736113169554,0.0004189,98509.0,98508.0,0.46755232]
[1736113170052,0.0004189,98509.0,98508.0,0.47055232]
[1736113170434,0.0004189,98509.0,98508.0,0.46655232]
[1736113170663,0.0004189,98509.0,98508.0,0.47155232]
[1736113178819,0.0004189,98509.0,98508.0,0.47172312]
[1736113185774,0.0004189,98509.0,98508.0,0.46488312]
[1736113185904,0.0004189,98509.0,98508.0,0.47172312]
[1736113203679,0.0004189,98509.0,98508.0,0.94293669]
[1736113204528,0.0004189,98509.0,98508.0,0.80703199]
[1736113206761,0.0004189,98509.0,98508.0,0.80019199]
[1736113206944,0.0004189,98509.0,98508.0,0.80703199]
[1736113208290,0.0004189,98509.0,98508.0,1.03412787]
[1736113209128,0.0004189,98509.0,98508.0,1.02728787]
[1736113209308,0.0004189,98509.0,98508.0,1.03412787]
[1736113209565,0.0004189,98509.0,98508.0,0.80703199]
[1736113213585,0.0004189,98509.0,98508.0,0.98870716]
[1736113214697,0.0004189,98509.0,98508.0,0.80703199]
[1736113216934,0.0004189,98509.0,98508.0,0.98870716]
[1736113218481,0.0004189,98509.0,98508.0,0.80703199]
[1736113219415,8.54e-05,98523.0,98520.0,0.182704]
[1736113219632,0.01469432,98521.0,98520.0,0.30969032]
[1736113219761,0.09588906,98521.0,98520.0,0.30969032]
[1736113219983,0.09119432,98521.0,98520.0,0.30969032]
[1736113220184,0.09119432,98521.0,98520.0,0.31653032]
[1736113220786,0.09119432,98521.0,98520.0,0.023]
[1736113220989,0.14723157,98521.0,98520.0,0.02984]
[1736113221194,0.15192633,98521.0,98520.0,0.02984]
[1736113221411,0.15192633,98521.0,98520.0,0.03084]
[1736113222087,0.19872633,98521.0,98520.0,0.02984]
[1736113222292,0.19872633,98521.0,98520.0,0.024]
[1736113222710,0.19872633,98521.0,98520.0,0.02984]
[1736113222929,0.19872633,98521.0,98520.0,0.03084]
[1736113223138,0.19872633,98521.0,98520.0,0.024]
[1736113223338,0.19872633,98521.0,98520.0,0.03084]
[1736113224087,0.19872633,98521.0,98520.0,0.02984]
[1736113224525,0.19872633,98521.0,98520.0,0.03084]
[1736113224758,0.19872633,98521.0,98520.0,0.02984]
[1736113224951,0.19881173,98521.0,98520.0,0.03084]
[1736113225157,0.19881173,98521.0,98520.0,0.001]
[1736113225331,0.0765,98520.0,98508.0,0.1501708]
[1736113225540,0.0765,98520.0,98510.0,0.00684]
[1736113225760,0.00468475,98519.0,98511.0,0.023]
[1736113226109,0.05603725,98516.0,98511.0,0.023]
[1736113226538,0.05603725,98512.0,98511.0,0.023]
[1736113227384,0.05603725,98516.0,98511.0,0.02984]
[1736113227583,0.05603725,98512.0,98511.0,0.02984]
[1736113228335,0.05603725,98512.0,98511.0,0.03184]
[1736113228544,0.05603725,98512.0,98511.0,0.02984]
[1736113228982,0.05603725,98512.0,98511.0,0.00884]
[1736113229857,0.05603725,98512.0,98511.0,0.36456]
[1736113231210,0.05603725,98515.0,98513.0,0.182716]
[1736113231518,0.05603725,98515.0,98514.0,0.023]
[1736113234332,0.05603725,98515.0,98514.0,0.024]
[1736113234556,0.05603725,98515.0,98514.0,0.023]
[1736113234972,0.05603725,98515.0,98514.0,0.024]
[1736113235159,0.05603725,98515.0,98514.0,0.023]
[1736113235606,0.05603725,98515.0,98514.0,0.024]
[1736113235860,0.05603725,98515.0,98514.0,0.023]
[1736113237130,0.05603725,98515.0,98514.0,0.001]
[1736113237475,0.05603725,98515.0,98514.0,0.023]
[1736113239075,0.05603725,98515.0,98512.0,0.023]
[1736113239482,0.05603725,98513.0,98512.0,0.023]
[1736113240986,0.05603725,98513.0,98512.0,0.024]
[1736113241734,0.05603725,98513.0,98512.0,0.023]
[1736113242367,0.05603725,98513.0,98512.0,0.024]
[1736113242570,0.06071854,98513.0,98512.0,0.024]
[1736113242775,0.05603725,98513.0,98512.0,0.03084]
[1736113243590,0.05603725,98513.0,98512.0,0.02984]
[1736113243744,0.05603725,98513.0,98512.0,0.03084]
[1736113243951,0.05603725,98513.0,98512.0,0.02984]
[1736113244901,0.05603725,98513.0,98512.0,0.03084]
[1736113245122,0.05603725,98513.0,98512.0,0.02984]
[1736113245243,0.05603725,98513.0,98512.0,0.03084]
[1736113246661,0.05603725,98513.0,98512.0,0.02984]
[1736113247071,0.05603725,98513.0,98512.0,0.03084]
[1736113247298,0.05603725,98513.0,98512.0,0.02984]
[1736113247495,0.05603725,98513.0,98512.0,0.03084]
[1736113247711,0.05612265,98513.0,98512.0,0.02984]
[1736113248117,0.05612265,98513.0,98512.0,0.03084]
[1736113248327,0.05612265,98513.0,98512.0,0.02984]
[1736113248751,0.13782265,98513.0,98512.0,0.00784]
[1736113248988,0.14250395,98513.0,98512.0,0.00784]
[1736113249172,0.14250395,98513.0,98512.0,0.03084]
[1736113249767,0.14250395,98513.0,98512.0,0.02984]
[1736113250340,0.14250395,98513.0,98512.0,0.03084]
[1736113250524,0.14250395,98513.0,98512.0,0.02984]
[1736113250677,0.14250395,98513.0,98512.0,0.03084]
[1736113253263,0.14250395,98513.0,98512.0,0.024]
[1736113253514,0.14250395,98513.0,98512.0,0.03084]
[1736113256002,0.14250395,98513.0,98512.0,0.02984]
[1736113258464,0.05603725,98510.0,98509.0,0.0120809]
[1736113258659,0.05603725,98510.0,98509.0,0.0189209]
[1736113258859,0.06070368,98510.0,98509.0,0.0189209]
[1736113260041,0.06070368,98510.0,98509.0,0.0199209]
[1736113260692,0.06070368,98510.0,98509.0,0.0189209]
[1736113268628,0.06070368,98510.0,98509.0,0.0120809]
[1736113268841,0.06070368,98510.0,98509.0,0.0189209]
[1736113271337,0.06078908,98510.0,98509.0,0.0189209]
[1736113280757,0.06078908,98510.0,98509.0,0.0120809]
[1736113280961,0.06078908,98510.0,98509.0,0.0189209]
[1736113296874,0.06078908,98510.0,98509.0,0.0120809]
[1736113297083,0.14178908,98510.0,98509.0,0.0189209]
[1736113297464,0.22021184,98510.0,98509.0,0.0189209]
[1736113298227,0.76403026,98510.0,98509.0,0.0189209]
[1736113298860,0.86403026,98510.0,98509.0,0.0189209]
[1736113299386,1.06701658,98510.0,98509.0,0.0189209]
[1736113299590,0.83824321,98510.0,98509.0,0.0189209]
[1736113299741,0.83924321,98510.0,98509.0,0.0189209]
[1736113299955,0.83824321,98510.0,98509.0,0.0189209]
[1736113300349,0.83924321,98510.0,98509.0,0.0199209]
[1736113300812,1.07001658,98510.0,98509.0,0.0130809]
[1736113301091,1.06801658,98510.0,98509.0,0.0130809]
[1736113301523,1.07001658,98510.0,98509.0,0.0130809]
[1736113301920,0.84124321,98510.0,98509.0,0.0130809]
[1736113304667,0.49055689,98510.0,98509.0,0.0130809]
[1736113304867,0.59055689,98510.0,98509.0,0.0130809]
[1736113305097,0.49055689,98510.0,98509.0,0.0130809]
[1736113305231,0.59055689,98510.0,98509.0,0.0130809]
[1736113305640,0.81878395,98510.0,98509.0,0.0130809]
[1736113309822,0.81878395,98510.0,98509.0,0.0199209]
[1736113314678,0.59055689,98510.0,98509.0,0.0199209]
[1736113317293,0.81878395,98510.0,98509.0,0.0199209]
[1736113317796,0.27651184,98510.0,98509.0,0.0199209]
[1736113318631,0.17651184,98510.0,98509.0,0.0199209]
[1736113318837,0.27651184,98510.0,98509.0,0.0199209]
[1736113319258,0.60062758,98510.0,98509.0,0.0199209]
[1736113326508,0.51962758,98510.0,98509.0,0.0199209]
[1736113328722,0.41962758,98510.0,98509.0,0.0199209]
[1736113328923,0.51962758,98510.0,98509.0,0.0199209]
[1736113344262,0.41962758,98510.0,98509.0,0.0199209]
[1736113352032,0.41962758,98510.0,98509.0,0.0130809]
[1736113356431,0.69389421,98510.0,98509.0,0.0130809]
[1736113357292,0.69389421,98510.0,98509.0,0.0199209]
[1736113360106,0.41962758,98510.0,98509.0,0.0199209]
[1736113361940,0.41962758,98510.0,98509.0,0.0130809]
[1736113362135,0.41962758,98510.0,98509.0,0.0199209]
[1736113363829,0.41962758,98510.0,98509.0,0.0130809]
[1736113364013,0.41962758,98510.0,98509.0,0.0199209]
[1736113365202,0.41939644,98510.0,98509.0,0.0199209]
[1736113367830,0.69366307,98510.0,98509.0,0.0199209]
[1736113370787,0.41939644,98510.0,98509.0,0.0199209]
[1736113371925,0.41939644,98510.0,98509.0,0.0130809]
[1736113372180,0.41939644,98510.0,98509.0,0.0199209]
[1736113373030,0.69366307,98510.0,98509.0,0.0199209]
[1736113373855,0.41939644,98510.0,98509.0,0.0199209]
[1736113376489,0.69366307,98510.0,98509.0,0.0199209]
[1736113377819,0.41939644,98510.0,98509.0,0.0199209]
[1736113383496,0.41939644,98510.0,98509.0,0.0130809]
[1736113383698,0.41939644,98510.0,98509.0,0.0199209]
[1736113390772,0.41473001,98510.0,98509.0,0.0199209]